lending/lending_fUSD_20250131
["ID","MTS","AMOUNT","RATE_DAILY","PERIOD"]
[351086679,1738329059874,-615.06,0.00016849,2]
[351086680,1738329059882,-500.0,0.00016849,2]
[351086681,1738329059892,-645.52,0.00016849,2]
[351086682,1738329059902,-500.0,0.00016849,2]
[351086683,1738329059911,-500.0,0.00016849,2]
[351086684,1738329059921,-1618.84,0.00016849,2]
[351086685,1738329059930,-1486.85,0.00016849,2]
[351086686,1738329059939,-500.0,0.00016849,2]
[351086687,1738329059948,-500.0,0.00016849,2]
[351086688,1738329059957,-500.0,0.00016849,2]
[351086689,1738329059966,-500.0,0.00016849,2]
[351086690,1738329059975,-574.69,0.00016849,2]
[351086691,1738329059985,-500.0,0.00016849,2]
[351086692,1738329059994,-500.0,0.00016849,2]
[351086693,1738329060003,-500.0,0.00016849,2]
[351086694,1738329060013,-500.0,0.00016849,2]
[351086695,1738329060022,-500.0,0.00016849,2]
[351086696,1738329060031,-500.0,0.00016849,2]
[351086697,1738329060040,-616.35563631,0.00016849,2]
[351086698,1738329060049,-500.0,0.00016849,2]
[351086699,1738329060060,-500.0,0.00016849,2]
[351086700,1738329060070,-586.51,0.00016849,2]
[351086701,1738329060080,-970.42,0.00016849,2]
[351086702,1738329060089,-500.0,0.00016849,2]
[351086703,1738329060099,-502.11102467,0.00016849,2]
[351086704,1738329060109,-830.14,0.00016849,2]
[351086705,1738329060118,-636.84,0.00016849,2]
[351086706,1738329060132,-500.0,0.00016849,2]
[351086707,1738329060143,-1164.34,0.00016849,2]
[351086708,1738329060153,-705.4,0.00016849,2]
[351086709,1738329060163,-555.38,0.00016849,2]
[351086710,1738329060172,-500.0,0.00016849,2]
[351086711,1738329060182,-500.0,0.00016849,2]
[351086712,1738329060192,-719.69,0.00016849,2]
[351086713,1738329060202,-644.17,0.00016849,2]
[351086714,1738329060212,-893.65,0.00016849,2]
[351086715,1738329060221,-1287.67,0.00016849,2]
[351086716,1738329060231,-500.0,0.00016849,2]
[351086717,1738329060240,-500.0,0.00016849,2]
[351086718,1738329060250,-500.0,0.00016849,2]
[351086719,1738329060259,-747.56,0.00016849,2]
[351086720,1738329060268,-500.0,0.00016849,2]
[351086721,1738329060278,-500.0,0.00016849,2]
[351086722,1738329060287,-757.81,0.00016849,2]
[351086723,1738329060296,-500.0,0.00016849,2]
[351086724,1738329060306,-500.0,0.00016849,2]
[351086725,1738329060315,-542.88312036,0.00016849,2]
[351086726,1738329060324,-703.48,0.00016849,2]
[351086727,1738329060334,-1023.89,0.00016849,2]
[351086728,1738329060343,-500.0,0.00016849,2]
[351086729,1738329060352,-500.0,0.00016849,2]
[351086730,1738329060361,-559.74,0.00016849,2]
[351086731,1738329060371,-500.0,0.00016849,2]
[351086732,1738329060380,-500.0,0.00016849,2]
[351086733,1738329060392,-562.98,0.00016849,2]
[351086734,1738329060401,-897.9,0.00016849,2]
[351086735,1738329060410,-780.63,0.00016849,2]
[351086736,1738329060420,-656.95,0.00016849,2]
[351086737,1738329060429,-757.01,0.00016849,2]
[351086738,1738329060438,-1307.84,0.00016849,2]
[351086739,1738329060449,-500.0,0.00016849,2]
[351086740,1738329060458,-1276.28,0.00016849,2]
[351086741,1738329060467,-946.91,0.00016849,2]
[351086742,1738329060476,-500.0,0.00016849,2]
[351086743,1738329060486,-1506.86,0.00016849,2]
[351086744,1738329060495,-913.16,0.00016849,2]
[351086745,1738329060504,-842.64,0.00016849,2]
[351086746,1738329060513,-500.0,0.00016849,2]
[351086747,1738329060523,-4700.11,0.00016849,2]
[351086748,1738329060532,-500.0,0.00016849,2]
[351086749,1738329060542,-500.0,0.00016849,2]
[351086750,1738329060552,-2679.05,0.00016849,2]
[351086751,1738329060561,-500.0,0.00016849,2]
[351086752,1738329060571,-500.0,0.00016849,2]
[351086753,1738329060580,-832.31,0.00016849,2]
[351086754,1738329060590,-602.0,0.00016849,2]
[351086755,1738329060600,-1350.96,0.00016849,2]
[351086756,1738329060609,-500.0,0.00016849,2]
[351086757,1738329060618,-1808.31,0.00016849,2]
[351086758,1738329060627,-500.0,0.00016849,2]
[351086759,1738329060637,-517.85,0.00016849,2]
[351086760,1738329060647,-2639.36,0.00016849,2]
[351086761,1738329060656,-1179.41,0.00016849,2]
[351086762,1738329060665,-743.52,0.00016849,2]
[351086763,1738329060674,-1606.73,0.00016849,2]
[351086764,1738329060683,-1623.99,0.00016849,2]
[351086765,1738329060693,-1404.02,0.00016849,2]
[351086766,1738329060702,-500.0,0.00016849,2]
[351086767,1738329060711,-1372.88,0.00016849,2]
[351086768,1738329060720,-500.0,0.00016849,2]
[351086769,1738329060729,-331.00390144,0.00016849,2]
[351086770,1738329060738,-864.92,0.00016849,2]
[351086771,1738329060747,-500.0,0.00016849,2]
[351086772,1738329060756,-1077.4,0.00016849,2]
[351086773,1738329060765,-705.67,0.00016849,2]
[351086774,1738329060774,-547.19,0.00016849,2]
[351086775,1738329060783,-500.0,0.00016849,2]
[351086776,1738329060792,-500.0,0.00016849,2]
[351086777,1738329060801,-540.12,0.00016849,2]
[351086778,1738329060810,-531.49,0.00016849,2]
[351086779,1738329060820,-1079.03,0.00016849,2]
[351086780,1738329060828,-2432.2,0.00016849,2]
[351086781,1738329060837,-500.0,0.00016849,2]
[351086782,1738329060847,-4651.18,0.00016849,2]
[351086783,1738329060856,-500.0,0.00016849,2]
[351086784,1738329060865,-500.0,0.00016849,2]
[351086785,1738329060874,-500.0,0.00016849,2]
[351086786,1738329060883,-1133.5,0.00016849,2]
[351086787,1738329060894,-500.0,0.00016849,2]
[351086788,1738329060903,-780.34,0.00016849,2]
[351086789,1738329060912,-500.0,0.00016849,2]
[351086790,1738329060921,-939.63,0.00016849,2]
[351086791,1738329060930,-500.0,0.00016849,2]
[351086792,1738329060939,-968.83,0.00016849,2]
[351086793,1738329060948,-655.96,0.00016849,2]
[351086794,1738329060958,-788.07,0.00016849,2]
[351086795,1738329060967,-3928.65,0.00016849,2]
[351086796,1738329060976,-530.52,0.00016849,2]
[351086797,1738329060985,-902.32,0.00016849,2]
[351086798,1738329060994,-1742.78,0.00016849,2]
[351086799,1738329061004,-1011.06,0.00016849,2]
[351086800,1738329061013,-1067.01,0.00016849,2]
[351086801,1738329061023,-1297.09,0.00016849,2]
[351086802,1738329061032,-500.0,0.00016849,2]
[351086803,1738329061041,-634.03,0.00016849,2]
[351086804,1738329061050,-2196.67,0.00016849,2]
[351086805,1738329061059,-2136.18,0.00016849,2]
[351086806,1738329061067,-860.21,0.00016849,2]
[351086807,1738329061077,-500.0,0.00016849,2]
[351086808,1738329061086,-2394.82,0.00016849,2]
[351086809,1738329061095,-910.7,0.00016849,2]
[351086810,1738329061104,-500.0,0.00016849,2]
[351086811,1738329061115,-822.68,0.00016849,2]
[351086812,1738329061126,-851.19,0.00016849,2]
[351086813,1738329061136,-1226.61,0.00016849,2]
[351086814,1738329061145,-500.0,0.00016849,2]
[351086815,1738329061154,-702.01,0.00016849,2]
[351086816,1738329061164,-1195.54,0.00016849,2]
[351086817,1738329061173,-914.12,0.00016849,2]
[351086818,1738329061182,-1799.07,0.00016849,2]
[351086819,1738329061191,-802.58,0.00016849,2]
[351086820,1738329061200,-1903.73,0.00016849,2]
[351086821,1738329061209,-595.06,0.00016849,2]
[351086822,1738329061218,-500.0,0.00016849,2]
[351086823,1738329061227,-500.0,0.00016849,2]
[351086824,1738329061236,-743.87,0.00016849,2]
[351086825,1738329061245,-500.0,0.00016849,2]
[351086826,1738329061254,-500.0,0.00016849,2]
[351086827,1738329061264,-500.0,0.00016849,2]
[351086828,1738329061274,-500.0,0.00016849,2]
[351086829,1738329061283,-949.43,0.00016849,2]
[351086830,1738329061293,-1357.44,0.00016849,2]
[351086831,1738329061302,-500.0,0.00016849,2]
[351086832,1738329061311,-500.0,0.00016849,2]
[351086833,1738329061320,-1613.89,0.00016849,2]
[351086834,1738329061330,-500.0,0.00016849,2]
[351086835,1738329061339,-2316.42,0.00016849,2]
[351086836,1738329061348,-500.0,0.00016849,2]
[351086837,1738329061357,-500.0,0.00016849,2]
[351086838,1738329061367,-1521.07,0.00016849,2]
[351086839,1738329061376,-500.0,0.00016849,2]
[351086840,1738329061385,-4073.26,0.00016849,2]
[351086841,1738329061395,-1336.87,0.00016849,2]
[351086842,1738329061404,-500.0,0.00016849,2]
[351086843,1738329061413,-970.37,0.00016849,2]
[351086844,1738329061422,-500.0,0.00016849,2]
[351086845,1738329061431,-748.5,0.00016849,2]
[351086846,1738329061440,-940.15,0.00016849,2]
[351086847,1738329061450,-1719.95,0.00016849,2]
[351086848,1738329061459,-500.0,0.00016849,2]
[351086849,1738329061468,-2592.1,0.00016849,2]
[351086850,1738329061477,-691.44,0.00016849,2]
[351086851,1738329061486,-1294.35,0.00016849,2]
[351086852,1738329061494,-531.85,0.00016849,2]
[351086853,1738329061504,-500.0,0.00016849,2]
[351086854,1738329061513,-500.0,0.00016849,2]
[351086855,1738329061522,-1767.81,0.00016849,2]
[351086856,1738329061531,-846.99,0.00016849,2]
[351086857,1738329061539,-970.18,0.00016849,2]
[351086858,1738329061549,-500.0,0.00016849,2]
[351086859,1738329061558,-150.38479784,0.00016849,2]
[351086860,1738329061567,-951.55,0.00016849,2]
[351086861,1738329061576,-2923.5,0.00016849,2]
[351086862,1738329061585,-759.68,0.00016849,2]
[351086863,1738329061594,-2217.75,0.00016849,2]
[351086864,1738329061603,-1197.27,0.00016849,2]
[351086865,1738329061612,-557.92,0.00016849,2]
[351086866,1738329061621,-1870.89,0.00016849,2]
[351086867,1738329061630,-500.0,0.00016849,2]
[351086868,1738329061639,-1747.62,0.00016849,2]
[351086869,1738329061648,-966.24,0.00016849,2]
[351086870,1738329061656,-2083.23,0.00016849,2]
[351086871,1738329061665,-629.6,0.00016849,2]
[351086872,1738329061674,-538.91,0.00016849,2]
[351086873,1738329061683,-516.67,0.00016849,2]
[351086874,1738329061692,-1626.45,0.00016849,2]
[351086875,1738329061701,-1334.9,0.00016849,2]
[351086876,1738329061710,-500.0,0.00016849,2]
[351086877,1738329061719,-500.0,0.00016849,2]
[351086878,1738329061728,-2622.35,0.00016849,2]
[351086879,1738329061737,-1398.57,0.00016849,2]
[351086880,1738329061746,-1784.61,0.00016849,2]
[351086881,1738329061755,-500.0,0.00016849,2]
[351086882,1738329061764,-349.34069022,0.00016849,2]
[351086883,1738329061773,-694.6,0.00016849,2]
[351086884,1738329061782,-500.0,0.00016849,2]
[351086885,1738329061791,-1559.33,0.00016849,2]
[351086886,1738329061801,-549.49,0.00016849,2]
[351086887,1738329061810,-707.62,0.00016849,2]
[351086888,1738329061819,-851.01,0.00016849,2]
[351086889,1738329061828,-3575.06,0.00016849,2]
[351086890,1738329061838,-1639.99,0.00016849,2]
[351086891,1738329061847,-1126.03,0.00016849,2]
[351086892,1738329061857,-6700.13,0.00016849,2]
[351086893,1738329061866,-4983.19,0.00016849,2]
[351086894,1738329061875,-1480.7,0.00016849,2]
[351086895,1738329061886,-500.0,0.00016849,2]
[351086896,1738329061895,-3420.33,0.00016849,2]
[351086897,1738329061904,-583.56,0.00016849,2]
[351086898,1738329061914,-3727.24,0.00016849,2]
[351086899,1738329061923,-991.11,0.00016849,2]
[351086900,1738329061933,-607.97,0.00016849,2]
[351086901,1738329061943,-1206.07,0.00016849,2]
[351086902,1738329061953,-2404.98,0.00016849,2]
[351086903,1738329061963,-2513.62,0.00016849,2]
[351086904,1738329061972,-500.0,0.00016849,2]
[351086905,1738329061981,-1210.51,0.00016849,2]
[351086906,1738329061990,-907.28,0.00016849,2]
[351086907,1738329062000,-1839.12,0.00016849,2]
[351086908,1738329062009,-960.89,0.00016849,2]
[351086909,1738329062018,-3367.69,0.00016849,2]
[351086910,1738329062028,-5138.96,0.00016849,2]
[351086911,1738329062037,-710.73,0.00016849,2]
[351086912,1738329062046,-500.0,0.00016849,2]
[351086913,1738329062057,-1902.02,0.00016849,2]
[351086914,1738329062067,-500.0,0.00016849,2]
[351086915,1738329062077,-5350.71,0.00016849,2]
[351086916,1738329062086,-500.0,0.00016849,2]
[351086917,1738329062096,-2209.52,0.00016849,2]
[351086918,1738329062106,-533.32,0.00016849,2]
[351086919,1738329062119,-2383.23,0.00016849,2]
[351086920,1738329062128,-6171.09,0.00016849,2]
[351086921,1738329062139,-1408.52,0.00016849,2]
[351086922,1738329062148,-1075.8,0.00016849,2]
[351086923,1738329062157,-2082.02,0.00016849,2]
[351086924,1738329062166,-996.0,0.00016849,2]
[351086925,1738329062175,-500.0,0.00016849,2]
[351086926,1738329062185,-919.54,0.00016849,2]
[351086927,1738329062194,-500.0,0.00016849,2]
[351086928,1738329062204,-6333.8,0.00016849,2]
[351086929,1738329062213,-500.0,0.00016849,2]
[351086930,1738329062222,-500.0,0.00016849,2]
[351086931,1738329062232,-1782.62,0.00016849,2]
[351086932,1738329062241,-672.79,0.00016849,2]
[351086933,1738329062251,-500.0,0.00016849,2]
[351086934,1738329062260,-3051.84,0.00016849,2]
[351086935,1738329062270,-654.44,0.00016849,2]
[351086936,1738329062280,-4891.44,0.00016849,2]
[351086937,1738329062289,-2090.99,0.00016849,2]
[351086938,1738329062299,-1907.72,0.00016849,2]
[351086939,1738329062308,-500.0,0.00016849,2]
[351086940,1738329062318,-669.8,0.00016849,2]
[351086941,1738329062327,-989.4,0.00016849,2]
[351086942,1738329062336,-3233.65,0.00016849,2]
[351086943,1738329062346,-1037.74,0.00016849,2]
[351086944,1738329062355,-4301.37,0.00016849,2]
[351086945,1738329062365,-500.0,0.00016849,2]
[351086946,1738329062374,-500.0,0.00016849,2]
[351086947,1738329062383,-1957.36,0.00016849,2]
[351086948,1738329062394,-5708.97,0.00016849,2]
[351086949,1738329062404,-1160.4,0.00016849,2]
[351086950,1738329062413,-500.0,0.00016849,2]
[351086951,1738329062423,-500.0,0.00016849,2]
[351086952,1738329062433,-654.25,0.00016849,2]
[351086953,1738329062442,-10518.3,0.00016849,2]
[351086954,1738329062452,-2792.48,0.00016849,2]
[351086955,1738329062462,-673.07,0.00016849,2]
[351086956,1738329062473,-1835.72,0.00016849,2]
[351086957,1738329062483,-847.7,0.00016849,2]
[351086958,1738329062493,-1913.93,0.00016849,2]
[351086959,1738329062502,-500.0,0.00016849,2]
[351086960,1738329062512,-500.0,0.00016849,2]
[351086961,1738329062522,-1347.02,0.00016849,2]
[351086962,1738329062531,-557.58,0.00016849,2]
[351086963,1738329062540,-2497.8,0.00016849,2]
[351086964,1738329062550,-2265.21,0.00016849,2]
[351086965,1738329062559,-500.0,0.00016849,2]
[351086966,1738329062569,-6256.88,0.00016849,2]
[351086967,1738329062578,-825.38,0.00016849,2]
[351086968,1738329062587,-11784.79,0.00016849,2]
[351086969,1738329062597,-290.95872416,0.00016878,2]
[351086970,1738329062606,-2000.0,0.00016879,2]
[351086971,1738329062616,-200.0,0.00016879,2]
[351086972,1738329062626,-152.96,0.00016937,2]
[351086973,1738329062636,-540.5399153,0.00016947,2]
[351086974,1738329062647,-634.69,0.00016963,2]
[351086975,1738329062656,-594.24,0.00016985,2]
[351086976,1738329062665,-798.88,0.00016985,2]
[351086977,1738329062675,-798.88,0.00016985,2]
[351086978,1738329062684,-946.4,0.00016986,2]
[351086979,1738329062694,-1377.592842,0.00016986,2]
[351086980,1738329062703,-568.22,0.00016986,2]
[351086981,1738329062713,-957.03692,0.00016986,2]
[351086982,1738329062723,-500.0,0.00016986,2]
[351086983,1738329062733,-543.51,0.00016986,2]
[351086984,1738329062743,-799.3,0.00016986,2]
[351086985,1738329062752,-500.0,0.00016986,2]
[351086986,1738329062762,-567.52,0.00016986,2]
[351086987,1738329062772,-863.39,0.00016986,2]
[351086988,1738329062781,-500.0,0.00016986,2]
[351086989,1738329062791,-500.0,0.00016986,2]
[351086990,1738329062801,-500.0,0.00016986,2]
[351086991,1738329062810,-542.07,0.00016986,2]
[351086992,1738329062820,-500.0,0.00016986,2]
[351086993,1738329062829,-502.63,0.00016986,2]
[351086994,1738329062838,-500.0,0.00016986,2]
[351086995,1738329062848,-500.0,0.00016986,2]
[351086996,1738329062857,-404.69654038,0.00016986,2]
[351086997,1738329062866,-500.0,0.00016986,2]
[351086998,1738329062876,-500.0,0.00016986,2]
[351086999,1738329062886,-782.78,0.00016986,2]
[351087000,1738329062895,-500.0,0.00016986,2]
[351087001,1738329062904,-664.58,0.00016986,2]
[351087002,1738329062913,-500.0,0.00016986,2]
[351087003,1738329062923,-500.0,0.00016986,2]
[351087004,1738329062932,-1577.84,0.00016986,2]
[351087005,1738329062942,-500.0,0.00016986,2]
[351087006,1738329062951,-871.13,0.00016986,2]
[351087007,1738329062961,-500.0,0.00016986,2]
[351087008,1738329062970,-500.0,0.00016986,2]
[351087009,1738329062980,-572.13,0.00016986,2]
[351087010,1738329062989,-500.0,0.00016986,2]
[351087011,1738329062998,-1315.14,0.00016986,2]
[351087012,1738329063008,-1697.24,0.00016986,2]
[351087013,1738329063018,-558.36,0.00016986,2]
[351087014,1738329063027,-965.82,0.00016986,2]
[351087015,1738329063037,-500.0,0.00016986,2]
[351087016,1738329063046,-1231.46,0.00016986,2]
[351087017,1738329063056,-1021.78,0.00016986,2]
[351087018,1738329063066,-500.0,0.00016986,2]
[351087019,1738329063076,-500.0,0.00016986,2]
[351087020,1738329063086,-160.28459236,0.00016986,2]
[351087021,1738329063096,-1327.84,0.00016986,2]
[351087022,1738329063107,-913.79,0.00016986,2]
[351087023,1738329063117,-500.0,0.00016986,2]
[351087024,1738329063130,-878.68,0.00016986,2]
[351087025,1738329063140,-500.35,0.00016986,2]
[351087026,1738329063151,-500.0,0.00016986,2]
[351087027,1738329063160,-500.0,0.00016986,2]
[351087028,1738329063170,-500.0,0.00016986,2]
[351087029,1738329063180,-710.68,0.00016986,2]
[351087030,1738329063189,-506.24,0.00016986,2]
[351087031,1738329063199,-1095.34,0.00016986,2]
[351087032,1738329063209,-914.93,0.00016986,2]
[351087033,1738329063219,-500.0,0.00016986,2]
[351087034,1738329063228,-759.24,0.00016986,2]
[351087035,1738329063238,-500.0,0.00016986,2]
[351087036,1738329063248,-516.98,0.00016986,2]
[351087037,1738329063258,-500.0,0.00016986,2]
[351087038,1738329063268,-500.0,0.00016986,2]
[351087039,1738329063278,-973.51,0.00016986,2]
[351087040,1738329063288,-500.0,0.00016986,2]
[351087041,1738329063298,-596.44,0.00016986,2]
[351087042,1738329063307,-500.0,0.00016986,2]
[351087043,1738329063317,-500.0,0.00016986,2]
[351087044,1738329063327,-500.0,0.00016986,2]
[351087045,1738329063337,-500.0,0.00016986,2]
[351087046,1738329063347,-500.0,0.00016986,2]
[351087047,1738329063358,-531.67003914,0.00016986,2]
[351087048,1738329063368,-500.0,0.00016986,2]
[351087049,1738329063378,-500.0,0.00016986,2]
[351087050,1738329063389,-500.0,0.00016986,2]
[351087051,1738329063399,-1436.84,0.00016986,2]
[351087052,1738329063410,-1260.54,0.00016986,2]
[351087053,1738329063421,-500.0,0.00016986,2]
[351087054,1738329063431,-980.35,0.00016986,2]
[351087055,1738329063442,-715.99,0.00016986,2]
[351087056,1738329063453,-382.1473328,0.00016986,2]
[351087057,1738329063464,-810.34,0.00016986,2]
[351087058,1738329063474,-843.3,0.00016986,2]
[351087059,1738329063484,-885.53,0.00016986,2]
[351087060,1738329063495,-201.24648766,0.00016986,2]
[351087061,1738329063505,-946.66,0.00016986,2]
[351087062,1738329063515,-500.0,0.00016986,2]
[351087063,1738329063525,-802.32,0.00016986,2]
[351087064,1738329063534,-500.0,0.00016986,2]
[351087065,1738329063544,-1451.88,0.00016986,2]
[351087066,1738329063554,-500.0,0.00016986,2]
[351087067,1738329063564,-500.0,0.00016986,2]
[351087068,1738329063574,-502.54,0.00016986,2]
[351087069,1738329063584,-500.0,0.00016986,2]
[351087070,1738329063594,-500.0,0.00016986,2]
[351087071,1738329063604,-500.0,0.00016986,2]
[351087072,1738329063614,-500.0,0.00016986,2]
[351087073,1738329063624,-845.24,0.00016986,2]
[351087074,1738329063634,-647.17,0.00016986,2]
[351087075,1738329063645,-698.25,0.00016986,2]
[351087076,1738329063655,-1165.58,0.00016986,2]
[351087077,1738329063665,-866.15,0.00016986,2]
[351087078,1738329063675,-781.77,0.00016986,2]
[351087079,1738329063685,-500.0,0.00016986,2]
[351087080,1738329063695,-700.77,0.00016986,2]
[351087081,1738329063705,-686.74,0.00016986,2]
[351087082,1738329063715,-500.0,0.00016986,2]
[351087083,1738329063725,-817.83,0.00016986,2]
[351087084,1738329063735,-895.02,0.00016986,2]
[351087085,1738329063745,-500.0,0.00016986,2]
[351087086,1738329063755,-554.73,0.00016986,2]
[351087087,1738329063764,-500.0,0.00016986,2]
[351087088,1738329063775,-500.0,0.00016986,2]
[351087089,1738329063784,-500.0,0.00016986,2]
[351087090,1738329063794,-500.0,0.00016986,2]
[351087091,1738329063805,-761.12,0.00016986,2]
[351087092,1738329063815,-500.0,0.00016986,2]
[351087093,1738329063825,-500.0,0.00016986,2]
[351087094,1738329063835,-500.0,0.00016986,2]
[351087095,1738329063845,-772.48,0.00016986,2]
[351087096,1738329063855,-500.0,0.00016986,2]
[351087097,1738329063864,-834.33,0.00016986,2]
[351087098,1738329063874,-500.0,0.00016986,2]
[351087099,1738329063884,-600.91,0.00016986,2]
[351087100,1738329063894,-821.05,0.00016986,2]
[351087101,1738329063905,-753.32,0.00016986,2]
[351087102,1738329063915,-500.0,0.00016986,2]
[351087103,1738329063925,-719.94,0.00016986,2]
[351087104,1738329063935,-500.0,0.00016986,2]
[351087105,1738329063944,-528.69,0.00016986,2]
[351087106,1738329063954,-928.65,0.00016986,2]
[351087107,1738329063964,-500.0,0.00016986,2]
[351087108,1738329063974,-1492.55,0.00016986,2]
[351087109,1738329063984,-667.48,0.00016986,2]
[351087110,1738329063993,-1144.46,0.00016986,2]
[351087111,1738329064003,-500.0,0.00016986,2]
[351087112,1738329064013,-567.66,0.00016986,2]
[351087113,1738329064023,-1194.43,0.00016986,2]
[351087114,1738329064032,-728.23,0.00016986,2]
[351087115,1738329064042,-500.0,0.00016986,2]
[351087116,1738329064052,-500.0,0.00016986,2]
[351087117,1738329064062,-638.68,0.00016986,2]
[351087118,1738329064072,-1214.08,0.00016986,2]
[351087119,1738329064081,-500.0,0.00016986,2]
[351087120,1738329064092,-607.29,0.00016986,2]
[351087121,1738329064102,-500.0,0.00016986,2]
[351087122,1738329064112,-615.06,0.00016986,2]
[351087123,1738329064124,-500.0,0.00016986,2]
[351087124,1738329064134,-645.52,0.00016986,2]
[351087125,1738329064145,-500.0,0.00016986,2]
[351087126,1738329064155,-500.0,0.00016986,2]
[351087127,1738329064166,-1618.84,0.00016986,2]
[351087128,1738329064177,-1486.85,0.00016986,2]
[351087129,1738329064187,-500.0,0.00016986,2]
[351087130,1738329064198,-500.0,0.00016986,2]
[351087131,1738329064207,-500.0,0.00016986,2]
[351087132,1738329064217,-500.0,0.00016986,2]
[351087133,1738329064228,-574.69,0.00016986,2]
[351087134,1738329064237,-464.58094647,0.00016986,2]
[351087135,1738329064247,-500.0,0.00016986,2]
[351087136,1738329064257,-500.0,0.00016986,2]
[351087137,1738329064267,-500.0,0.00016986,2]
[351087138,1738329064277,-500.0,0.00016986,2]
[351087139,1738329064540,-391.28706192,0.00016986,2]
[351087140,1738329064607,-500.0,0.00016986,2]
[351087141,1738329064617,-500.0,0.00016986,2]
[351087142,1738329064627,-586.51,0.00016986,2]
[351087143,1738329064639,-970.42,0.00016986,2]
[351087144,1738329064649,-403.07534671,0.00016986,2]
[351087145,1738329064659,-830.14,0.00016986,2]
[351087146,1738329064669,-636.84,0.00016986,2]
[351087147,1738329064678,-500.0,0.00016986,2]
[351087148,1738329064688,-1164.34,0.00016986,2]
[351087149,1738329064698,-705.4,0.00016986,2]
[351087150,1738329064707,-555.38,0.00016986,2]
[351087151,1738329064716,-500.0,0.00016986,2]
[351087152,1738329064726,-500.0,0.00016986,2]
[351087153,1738329064735,-719.69,0.00016986,2]
[351087154,1738329064745,-644.17,0.00016986,2]
[351087155,1738329064754,-893.65,0.00016986,2]
[351087156,1738329064764,-1287.67,0.00016986,2]
[351087157,1738329064774,-500.0,0.00016986,2]
[351087158,1738329064783,-500.0,0.00016986,2]
[351087159,1738329064793,-500.0,0.00016986,2]
[351087160,1738329064802,-747.56,0.00016986,2]
[351087161,1738329064812,-500.0,0.00016986,2]
[351087162,1738329064822,-500.0,0.00016986,2]
[351087163,1738329064831,-757.81,0.00016986,2]
[351087164,1738329064841,-500.0,0.00016986,2]
[351087165,1738329064850,-575.49276664,0.00016986,2]
[351087166,1738329064860,-703.48,0.00016986,2]
[351087167,1738329064869,-1023.89,0.00016986,2]
[351087168,1738329064879,-500.0,0.00016986,2]
[351087169,1738329064890,-500.0,0.00016986,2]
[351087170,1738329064899,-500.0,0.00016986,2]
[351087171,1738329064908,-559.74,0.00016986,2]
[351087172,1738329064918,-500.0,0.00016986,2]
[351087173,1738329064927,-562.98,0.00016986,2]
[351087174,1738329064936,-897.9,0.00016986,2]
[351087175,1738329064946,-780.63,0.00016986,2]
[351087176,1738329064956,-656.95,0.00016986,2]
[351087177,1738329064965,-757.01,0.00016986,2]
[351087178,1738329064974,-1307.84,0.00016986,2]